bitfinex-derivatives/quotes_SOLF0:USTF0_20250127
["timestamp","ask_amount","ask_price","bid_price","bid_amount"]
[1737957576292,6.348e-05,232.13,232.1,0.03115964]
[1737957576998,6.348e-05,232.13,232.1,4.34195964]
[1737957577295,6.348e-05,232.13,232.12,4.3104]
[1737957580398,6.348e-05,232.13,232.1,0.03115964]
[1737957580996,6.348e-05,232.13,232.12,4.3104]
[1737957583699,3.6998,232.22,232.21,4.3088]
[1737957583899,97.57157747,232.36,232.13,16.85157747]
[1737957584099,3.3681,232.31,232.14,2.7143]
[1737957584603,4.3077,232.27,232.2,4.3088]
[1737957584798,0.02776248,232.26,232.21,0.02743603]
[1737957585195,0.02776248,232.26,232.05,16.85157747]
[1737957585401,16.85157747,232.28,232.06,2.7143]
[1737957585797,4.3088,232.22,232.15,4.3098]
[1737957586199,4.3091,232.19,232.06,2.7143]
[1737957586404,4.3091,232.19,232.16,0.02755454]
[1737957586604,4.3091,232.19,232.06,2.7143]
[1737957586805,4.3096,232.17,232.15,0.03020682]
[1737957587005,4.3096,232.17,232.11,4.3104]
[1737957587203,4.3096,232.17,232.14,0.03291458]
[1737957587504,4.34104629,232.18,232.14,0.03291458]
[1737957588406,0.03164629,232.18,232.14,0.03291458]
[1737957589207,4.3095,232.17,232.14,0.03291458]
[1737957589409,0.03164629,232.18,232.09,4.3109]
[1737957589602,0.03164629,232.18,232.01,16.85157747]
[1737957589807,4.3106,232.12,232.05,4.3117]
[1737957590308,4.3106,232.12,232.06,4.3115]
[1737957590507,6.5313,232.22,232.01,16.85157747]
[1737957590807,0.03171125,232.11,232.01,16.85157747]
[1737957591107,0.03171125,232.11,232.1,4.3107]
[1737957592407,0.03171125,232.11,232.01,16.85157747]
[1737957592606,0.03171125,232.11,232.08,4.311]
[1737957592809,0.03171125,232.11,232.01,16.85157747]
[1737957593108,0.03171125,232.11,232.07,4.3112]
[1737957594010,0.03171125,232.11,232.08,4.3112]
[1737957594512,0.03171125,232.11,232.06,4.3114]
[1737957594708,4.34231125,232.11,232.06,4.3114]
[1737957595403,4.34231125,232.11,232.07,4.3114]
[1737957595602,0.03171125,232.11,232.07,4.3114]
[1737957595805,0.03171125,232.11,231.99,2.6183]
[1737957596105,0.03171125,232.11,231.93,16.85157747]
[1737957596309,16.85157747,232.16,231.93,16.85157747]
[1737957596509,0.02742271,232.04,232.02,4.3123]
[1737957596710,4.3112,232.08,232.02,4.3123]
[1737957596914,0.02877541,232.05,232.02,4.3123]
[1737957597106,0.02877541,232.05,231.93,16.85157747]
[1737957597310,0.02877541,232.05,232.03,4.3121]
[1737957598509,0.02877541,232.05,231.93,16.85157747]
[1737957598814,0.02877541,232.05,232.04,4.3119]
[1737957599813,0.02877541,232.05,232.02,4.3121]
[1737957600214,0.02877541,232.05,231.93,16.85157747]
[1737957600914,0.02877541,232.05,232.02,4.3121]
[1737957601108,0.02877541,232.05,231.93,16.85157747]
[1737957601507,4.3124,232.02,231.97,4.3131]
[1737957601705,3.4437,232.04,231.92,2.6703]
[1737957601916,3.4437,232.04,231.93,16.85157747]
[1737957602109,0.0319074,232.0,231.92,2.6703]
[1737957602313,16.88348487,232.0,231.8,16.85157747]
[1737957602511,16.85157747,231.96,231.77,2.8762]
[1737957602818,0.03027232,231.92,231.77,2.8762]
[1737957603011,2.6693,231.95,231.76,16.85157747]
[1737957603311,0.02761257,231.87,231.76,16.85157747]
[1737957603616,0.02761257,231.87,231.74,5.6488]
[1737957603813,4.34281257,231.87,231.78,4.3166]
[1737957604011,0.02761257,231.87,231.74,5.6488]
[1737957604211,0.02761257,231.87,231.77,16.85157747]
[1737957604418,0.02761257,231.87,231.86,4.3153]
[1737957604419,1.257e-05,231.87,231.86,4.3153]
[1737957604610,1.257e-05,231.87,231.74,5.6488]
[1737957604611,2.6693,231.95,231.85,16.85157747]
[1737957604817,3.4437,232.04,231.89,16.85157747]
[1737957605018,3.4437,232.04,231.9,2.8165]
[1737957605616,3.4437,232.04,231.93,16.85157747]
[1737957605914,0.03148,231.99,231.97,4.3131]
[1737957606916,0.03148,231.99,231.95,0.03218964]
[1737957606917,2.8289,232.13,232.08,4.3112]
[1737957607219,6.4929,232.13,231.97,16.85157747]
[1737957607420,6.4929,232.13,231.93,16.85157747]
[1737957607716,16.85157747,232.12,231.91,2.759]
[1737957608014,16.85157747,232.08,231.9,2.8165]
[1737957608218,0.03290607,232.04,231.99,0.02910618]
[1737957608415,0.03290607,232.04,231.9,2.8165]
[1737957608615,0.03290607,232.04,231.99,0.0314288]
[1737957608919,4.3108,232.11,232.03,4.3121]
[1737957609111,0.03295576,232.04,232.03,4.3121]
[1737957609311,10.8032,232.13,232.05,0.02996933]
[1737957609515,0.03284622,232.06,232.04,4.3118]
[1737957609711,6.4929,232.13,232.07,0.02757997]
[1737957610016,0.03240747,232.12,232.08,4.3111]
[1737957610320,3.664,232.13,232.08,0.03234642]
[1737957610519,0.03058166,232.12,232.11,4.3105]
[1737957610920,0.03058166,232.12,232.08,0.03234642]
[1737957612820,0.03058166,232.12,232.09,4.3109]
[1737957613021,0.03058166,232.12,232.08,0.03234642]
[1737957613221,84.46,232.34,232.08,16.88392389]
[1737957613523,4.3087,232.22,232.15,4.3098]
[1737957614022,4.309,232.2,232.04,16.85157747]
[1737957614218,3.5763,232.25,232.04,16.85157747]
[1737957614521,0.02883545,232.14,232.1,0.03279034]
[1737957614713,4.309,232.2,232.04,16.85157747]
[1737957614913,0.03237827,232.14,232.1,0.0284798]
[1737957615218,4.3094,232.18,232.04,16.85157747]
[1737957615522,0.03242235,232.14,232.1,0.02739342]
[1737957615722,3.5763,232.25,232.04,16.85157747]
[1737957615923,0.02724612,232.14,232.1,0.03146252]
[1737957616124,4.3097,232.17,232.1,4.3108]
[1737957616324,0.02912014,232.14,232.1,0.02842341]
[1737957616520,16.85157747,232.21,232.0,16.85157747]
[1737957616718,0.03265984,232.14,232.1,0.02996052]
[1737957617120,0.03265984,232.14,231.96,16.85157747]
[1737957617324,2.8521,232.16,231.96,16.85157747]
[1737957617624,4.3109,232.1,232.02,4.3123]
[1737957618121,2.7579,232.15,231.96,16.85157747]
[1737957618324,0.02880565,232.08,232.04,0.02926502]
[1737957618523,0.02880565,232.08,231.95,2.645]
[1737957618721,0.02880565,232.08,231.86,3.1045]
[1737957619025,16.85157747,232.05,231.87,2.7871]
[1737957619426,4.3122,232.03,231.96,4.3134]
[1737957619926,0.03065071,232.02,231.97,0.02937291]
[1737957620624,16.85157747,232.01,231.87,2.7871]
[1737957620826,2.6905,232.0,231.87,2.7871]
[1737957621124,2.6905,232.0,231.81,2.7795]
[1737957621525,16.85157747,231.97,231.78,2.6018]
[1737957621730,0.03085604,231.93,231.78,2.6018]
[1737957621926,4.3151,231.87,231.78,2.6018]
[1737957622126,16.85157747,231.93,231.78,2.6018]
[1737957622426,0.02999733,231.85,231.74,2.7795]
[1737957623026,0.02999733,231.85,231.8,4.3163]
[1737957623228,0.02999733,231.85,231.74,2.7795]
[1737957623529,0.02999733,231.85,231.77,4.3169]
[1737957623830,0.02999733,231.85,231.73,2.6018]
[1737957624129,4.3159,231.83,231.74,4.3174]
[1737957624326,0.02999733,231.85,231.73,2.6018]
[1737957624531,16.8815748,231.85,231.73,2.6018]
[1737957624724,2.862,231.87,231.73,2.6018]
[1737957624934,0.03293786,231.81,231.73,2.6018]
[1737957625134,16.85157747,232.01,231.77,16.85157747]
[1737957625430,16.85157747,232.01,231.81,16.85157747]
[1737957625828,3.3845,232.0,231.78,0.4016]
[1737957626236,0.03301424,231.91,231.87,0.03244342]
[1737957626626,16.85157747,231.93,231.87,0.03244342]
[1737957626833,0.03241838,231.91,231.87,0.03244342]
[1737957627831,0.03241838,231.91,231.88,4.3148]
[1737957628128,0.03241838,231.91,231.87,0.03244342]
[1737957628334,0.03241838,231.91,231.87,4.34734342]
[1737957628536,0.03241838,231.91,231.87,0.03244342]
[1737957629331,4.3148,231.89,231.87,0.03244342]
[1737957629527,4.3148,231.89,231.8,4.3164]
[1737957629528,0.03241838,231.91,231.73,2.6018]
[1737957629728,2.719,231.9,231.73,2.6018]
[1737957629933,16.85157747,231.88,231.69,0.403]
[1737957630238,16.85157747,231.88,231.67,2.6017]
[1737957630628,0.02796386,231.8,231.67,2.6017]
[1737957630839,0.02796386,231.8,231.75,4.3173]
[1737957631136,0.02796386,231.8,231.67,2.6017]
[1737957631338,0.02796386,231.8,231.7,4.3181]
[1737957631637,0.02796386,231.8,231.67,2.6017]
[1737957632038,4.3167,231.79,231.72,4.3179]
[1737957632838,0.02796386,231.8,231.67,2.6017]
[1737957633236,0.0317771,231.76,231.67,2.6017]
[1737957633433,0.0317771,231.76,231.75,4.3173]
[1737957633637,16.85157747,231.92,231.7,16.85157747]
[1737957633840,4.3149,231.88,231.76,4.317]
[1737957634140,16.85157747,231.92,231.7,16.85157747]
[1737957634342,16.85157747,231.92,231.67,2.6017]
[1737957634842,0.0280824,231.82,231.77,0.0293323]
[1737957635037,0.0280824,231.82,231.67,2.6017]
[1737957635240,16.85157747,231.88,231.67,19.45327747]
[1737957635440,16.85157747,231.84,231.67,2.6017]
[1737957635640,0.02839841,231.77,231.67,2.6017]
[1737957635839,3.5251,231.83,231.67,2.6017]
[1737957636048,0.03311759,231.74,231.67,2.6017]
[1737957636235,0.03311759,231.74,231.7,0.02989827]
[1737957636842,0.03311759,231.74,231.72,4.3178]
[1737957637042,0.03311759,231.74,231.7,0.02989827]
[1737957638641,0.03311759,231.74,231.55,2.6589]
[1737957638841,4.319,231.66,231.55,2.6589]
[1737957639042,16.85157747,231.72,231.55,2.6589]
[1737957639242,2.7933,231.71,231.55,2.6589]
[1737957639443,5.4046,231.71,231.55,2.6589]
[1737957639838,0.02987055,231.65,231.61,0.02074575]
[1737957640643,16.85157747,231.64,231.46,2.6589]
[1737957641143,16.85157747,231.6,231.49,4.322]
[1737957641740,0.03009063,231.57,231.49,4.322]
[1737957642247,0.03009063,231.57,231.47,4.3224]
[1737957642448,16.85157747,231.55,231.34,2.6066]
[1737957642647,27.558216,231.52,231.35,2.6256]
[1737957642949,0.03289547,231.46,231.35,2.6256]
[1737957643339,0.03289547,231.46,231.41,4.3236]
[1737957643544,0.03289547,231.46,231.35,2.6256]
[1737957643945,0.03289547,231.46,231.41,4.3236]
[1737957644152,0.03289547,231.46,231.35,2.6256]
[1737957645251,4.3231,231.45,231.35,6.9503]
[1737957645451,0.03289547,231.46,231.35,6.9503]
[1737957645950,4.3232,231.44,231.36,4.3245]
[1737957646950,0.03289547,231.46,231.35,2.6256]
[1737957647348,4.323,231.45,231.32,4.3252]
[1737957647552,0.03289547,231.46,231.28,2.7694]
[1737957647751,3.8958,231.47,231.28,2.7694]
[1737957648054,0.03311994,231.39,231.28,2.7694]
[1737957649955,0.03311994,231.39,231.33,4.325]
[1737957650155,0.03311994,231.39,231.28,2.7694]
[1737957651663,0.03311994,231.39,231.37,4.3244]
[1737957652362,0.03311994,231.39,231.38,4.3242]
[1737957652960,4.322,231.5,231.44,4.3229]
[1737957653359,30.392816,231.52,231.44,4.3229]
[1737957653756,30.392816,231.52,231.3,27.558216]
[1737957654267,2.595e-05,231.43,231.39,0.03123948]
[1737957654766,3.9448,231.53,231.35,1.4277]
[1737957654965,4.3218,231.51,231.35,1.4277]
[1737957655366,0.02848036,231.45,231.41,0.03009885]
[1737957656268,31.881616,231.43,231.29,2.8509]
[1737957656467,27.558216,231.43,231.28,2.7694]
[1737957656865,4.3236,231.42,231.32,4.3253]
[1737957657168,4.3236,231.42,231.28,2.7694]
[1737957657569,0.02998858,231.37,231.35,4.3247]
[1737957657865,0.02998858,231.37,231.33,0.03045008]
[1737957658962,0.02998858,231.37,231.33,4.35555008]
[1737957659367,0.02998858,231.37,231.33,0.03045008]
[1737957659569,0.02998858,231.37,231.35,4.3248]
[1737957660267,0.02998858,231.37,231.33,0.03045008]
[1737957661368,0.02998858,231.37,231.26,4.3263]
[1737957661567,0.02998858,231.37,231.22,5.4276]
[1737957661767,5.5085,231.39,231.22,5.4276]
[1737957661969,4.325,231.34,231.26,4.3263]
[1737957662171,4.325,231.34,231.22,5.4276]
[1737957662570,4.325,231.34,231.28,4.3261]
[1737957662772,0.03229979,231.3,231.22,5.4276]
[1737957663072,0.03229979,231.3,231.11,31.66562489]
[1737957663269,4.3259,231.29,231.12,5.2466]
[1737957663571,31.66562489,231.35,231.12,5.2466]
[1737957664066,31.66562489,231.36,231.16,31.66562489]
[1737957664265,31.66562489,231.36,231.13,1.4823]
[1737957664469,0.03248974,231.28,231.13,1.4823]
[1737957664665,19.489807,231.38,231.26,4.3264]
[1737957664972,5.812e-05,231.23,231.19,19.489807]
[1737957665172,23.814007,231.38,231.19,19.489807]
[1737957665374,2.7826,231.39,231.19,19.489807]
[1737957665674,19.489807,231.43,231.24,19.489807]
[1737957665868,19.489807,231.43,231.25,2.6748]
[1737957666169,0.03017346,231.36,231.31,0.03224017]
[1737957666564,0.03017346,231.36,231.34,4.3249]
[1737957667273,0.03017346,231.36,231.31,0.03224017]
[1737957667672,4.35497346,231.36,231.31,0.03224017]
[1737957669975,0.03017346,231.36,231.31,0.03224017]
[1737957670567,0.03017346,231.36,231.34,4.325]
[1737957670970,0.03017346,231.36,231.35,4.3248]
[1737957671980,2.7259,231.47,231.31,0.03224017]
[1737957672181,3.929,231.52,231.29,19.489807]
[1737957672377,3.929,231.52,231.34,19.489807]
[1737957672682,3.929,231.52,231.35,2.626]
[1737957673075,4.3209,231.56,231.5,4.322]
[1737957673476,19.489807,231.58,231.35,2.626]
[1737957673676,19.489807,231.53,231.51,0.03156631]
[1737957673881,19.489807,231.53,231.35,2.626]
[1737957673882,2.7664,231.52,231.35,2.626]
[1737957674079,4.3223,231.49,231.42,4.3234]
[1737957674282,3.929,231.51,231.35,2.626]
[1737957675080,0.03083341,231.45,231.41,0.02784826]
[1737957675383,0.03083341,231.45,231.44,4.3231]
[1737957675783,3.341e-05,231.45,231.44,4.3231]
[1737957676282,3.341e-05,231.45,231.43,4.3233]
[1737957676477,3.341e-05,231.45,231.41,0.02784826]
[1737957677182,3.341e-05,231.45,231.42,4.3234]
[1737957677780,3.341e-05,231.45,231.41,0.02784826]
[1737957677985,3.341e-05,231.45,231.43,4.3232]
[1737957679181,3.341e-05,231.45,231.41,0.02784826]
[1737957679988,3.341e-05,231.45,231.44,4.3231]
[1737957680378,3.341e-05,231.45,231.41,0.02784826]
[1737957680786,3.341e-05,231.45,231.42,4.3234]
[1737957680987,3.341e-05,231.45,231.41,0.02784826]
[1737957681890,3.341e-05,231.45,231.41,4.35144826]
[1737957682085,3.341e-05,231.45,231.41,0.02784826]
[1737957682494,3.341e-05,231.45,231.43,4.3231]
[1737957682701,3.341e-05,231.45,231.41,0.02784826]
[1737957686293,3.341e-05,231.45,231.44,4.3231]
[1737957691790,2.8006,231.62,231.42,22.132107]
[1737957692397,2.8006,231.62,231.58,4.3205]
[1737957692597,2.8006,231.62,231.42,22.132107]
[1737957692801,7.1204,231.62,231.42,22.132107]
[1737957692989,0.03326405,231.54,231.51,4.3218]
[1737957693300,4.0578,231.63,231.5,0.03132965]
[1737957694300,4.0578,231.63,231.61,4.3199]
[1737957694496,19.489807,231.7,231.5,0.03132965]
[1737957694804,105.10137773,231.81,231.5,0.03132965]
[1737957694805,8.355e-05,231.64,231.63,4.3196]
[1737957695097,21.40783137,231.78,231.58,19.489807]
[1737957695295,21.40783137,231.78,231.59,5.3549]
[1737957695296,3.7526,231.78,231.59,5.3549]
[1737957695692,19.489807,231.75,231.59,5.3549]
[1737957695895,0.02985958,231.71,231.66,0.02949584]
[1737957696093,4.3183,231.7,231.66,0.02949584]
[1737957696398,4.3183,231.7,231.62,4.3196]
[1737957696597,4.3183,231.7,231.63,4.3195]
[1737957696796,0.02985958,231.71,231.53,2.6273]
[1737957696998,19.489807,231.75,231.53,2.6273]
[1737957697394,3.7526,231.78,231.53,22.117107]
[1737957697589,8.99e-06,231.66,231.62,0.03217067]
[1737957697792,8.99e-06,231.66,231.65,4.3192]
[1737957697990,8.0695,231.78,231.53,22.117107]
[1737957698196,8.0695,231.78,231.7,4.3182]
[1737957698398,3.7526,231.78,231.58,19.489807]
[1737957698598,4.3154,231.86,231.63,19.489807]
[1737957698799,4.3154,231.86,231.8,4.3163]
[1737957699102,0.03229197,231.77,231.64,7.279]
[1737957699402,5.4745,231.89,231.68,0.027184]
[1737957699702,5.4745,231.89,231.64,7.279]
[1737957700297,2.7387,231.89,231.73,19.489807]
[1737957700504,17.65523137,231.92,231.9,4.3144]
[1737957701306,0.03009346,231.93,231.89,0.03011816]
[1737957704001,4.3144,231.91,231.89,0.03011816]
[1737957704205,0.03009346,231.93,231.8,4.3163]
[1737957704406,4.0617,231.94,231.8,4.3163]
[1737957704606,4.0617,231.94,231.78,4.3167]
[1737957704805,4.0617,231.94,231.67,2.6799]
[1737957705101,4.3153,231.86,231.67,2.6799]
[1737957705307,0.02820849,231.83,231.78,0.02971474]
[1737957708902,0.02820849,231.83,231.81,4.3161]
[1737957709297,8.49e-06,231.83,231.81,4.3161]
[1737957709803,8.49e-06,231.83,231.82,2.8631]
[1737957710005,19.489807,232.0,231.92,4.3141]
[1737957710204,3.62,232.03,231.82,22.352907]
[1737957710407,3.62,232.03,231.9,4.3143]
[1737957710908,3.62,232.03,231.82,22.352907]
[1737957711208,0.03099887,231.99,231.94,0.0277946]
[1737957711608,4.3132,231.97,231.94,0.0277946]
[1737957711906,0.03099887,231.99,231.79,2.7661]
[1737957712106,4.315,231.88,231.72,19.489807]
[1737957712602,2.8644,231.93,231.71,7.2452]
[1737957712803,2.8446,231.87,231.71,2.8603]
[1737957713003,0.02878455,231.84,231.8,0.0317489]
[1737957713199,4.3162,231.81,231.8,0.0317489]
[1737957713406,4.3162,231.81,231.71,2.8603]
[1737957713707,2.8446,231.87,231.71,2.8603]
[1737957714503,0.03088437,231.81,231.77,0.0305755]
[1737957714699,0.03088437,231.81,231.79,4.3165]
[1737957714900,0.03088437,231.81,231.77,0.0305755]
[1737957716810,0.03088437,231.81,231.62,23.874707]
[1737957717112,19.489807,231.85,231.63,2.7957]
[1737957718012,0.02975845,231.76,231.72,0.03071177]
[1737957718312,4.3166,231.79,231.7,4.3182]
[1737957718510,0.03289812,231.76,231.72,0.02951708]
[1737957719012,0.03289812,231.76,231.72,0.02812136]
[1737957719013,0.03253376,231.76,231.72,0.02812136]
[1737957720210,0.03253376,231.76,231.74,4.3174]
[1737957720405,0.03253376,231.76,231.72,0.02812136]
[1737957720606,0.03253376,231.76,231.74,4.3175]
[1737957720813,0.03253376,231.76,231.72,0.02812136]
[1737957721313,0.03253376,231.76,231.75,4.3173]
[1737957722213,3.9702,231.84,231.72,0.02812136]
[1737957722414,3.9702,231.84,231.83,4.3158]
[1737957724313,3.9702,231.84,231.82,4.316]
[1737957724513,3.9702,231.84,231.81,0.03062416]
[1737957724910,3.9702,231.84,231.67,19.489807]
[1737957725110,3.9702,231.84,231.63,2.7957]
[1737957725612,4.3162,231.82,231.75,4.3173]
[1737957726114,4.34428808,231.81,231.76,0.02838077]
[1737957726304,4.3163,231.81,231.63,2.7957]
[1737957726509,0.02796088,231.74,231.7,0.03239642]
[1737957726713,3.9702,231.84,231.63,2.7957]
[1737957726909,0.02846908,231.74,231.7,0.03070379]
[1737957727104,4.3163,231.81,231.75,4.3172]
[1737957727414,0.02719991,231.83,231.7,0.03092776]
[1737957727614,0.02719991,231.83,231.63,2.7957]
[1737957727913,0.03042556,231.75,231.74,4.34980443]
[1737957728104,3.9702,231.84,231.74,4.34980443]
[1737957728305,0.03292744,231.77,231.74,0.03250443]
[1737957728611,19.52273444,231.77,231.52,19.489807]
[1737957728807,19.489807,231.67,231.53,2.7186]
[1737957729010,4.3198,231.62,231.55,4.3209]
[1737957729314,2.6399,231.66,231.49,140.9053653]
[1737957729615,2.8795,231.65,231.5,4.3218]
[1737957729810,0.02834606,231.6,231.55,0.02956225]
[1737957730713,0.02834606,231.6,231.56,4.3208]
[1737957731215,0.02834606,231.6,231.55,0.02956225]
[1737957733212,0.02834606,231.6,231.56,4.3208]
[1737957733414,0.02834606,231.6,231.55,0.02956225]
[1737957733610,19.44161438,231.59,231.48,140.9053653]
[1737957733808,4.3207,231.57,231.5,4.3219]
[1737957734011,19.44161438,231.59,231.48,140.9053653]
[1737957734411,19.45147738,231.61,231.48,140.9053653]
[1737957734816,0.03068316,231.57,231.48,140.9053653]
[1737957735413,0.03068316,231.57,231.48,19.45147738]
[1737957736112,0.03068316,231.57,231.55,4.321]
[1737957736817,8.316e-05,231.57,231.55,4.321]
[1737957738320,5.5336,231.76,231.56,19.45147738]
[1737957738519,5.5336,231.76,231.61,19.45147738]
[1737957738719,2.8742,231.76,231.62,2.8089]
[1737957738913,2.8742,231.76,231.71,4.3179]
[1737957739213,3.964,231.79,231.62,2.8089]
[1737957739411,0.02791102,231.76,231.71,0.02903564]
[1737957740014,0.02791102,231.76,231.75,4.3173]
[1737957740219,2.8742,231.86,231.71,0.02903564]
[1737957740418,3.964,231.85,231.71,0.02903564]
[1737957740619,3.964,231.85,231.64,19.45147738]
[1737957741317,19.45147738,231.91,231.69,19.45147738]
[1737957741520,1.989e-05,231.77,231.72,0.03001787]
[1737957741720,6.7125,231.9,231.7,2.6518]
[1737957742016,6.7125,231.9,231.74,19.45147738]
[1737957742221,3.964,231.9,231.75,2.8635]
[1737957742422,3.964,231.9,231.75,4.831]
[1737957742722,0.02905943,231.85,231.84,4.3155]
[1737957743520,0.02905943,231.85,231.82,4.34745328]
[1737957743720,0.02905943,231.85,231.82,0.03155328]
[1737957744020,0.02905943,231.85,231.7,2.6518]
[1737957744320,2.8216,231.89,231.71,2.8635]
[1737957744620,7.1365,231.89,231.79,4.3164]
[1737957744820,7.1365,231.89,231.71,2.8635]
[1737957745021,2.8216,231.89,231.71,2.8635]
[1737957745221,0.03317717,231.82,231.8,4.3163]
[1737957745521,4.3149,231.88,231.8,4.3163]
[1737957746021,0.03150859,231.83,231.8,4.3163]
[1737957746816,0.03150859,231.83,231.78,0.03260643]
[1737957747521,0.03150859,231.83,231.81,4.3162]
[1737957748357,0.03150859,231.83,231.78,0.03260643]
[1737957748851,8.59e-06,231.83,231.78,0.03260643]
[1737957749054,8.59e-06,231.83,231.81,4.3162]
[1737957749747,8.59e-06,231.83,231.79,4.3164]
[1737957749944,8.59e-06,231.83,231.78,0.03260643]
[1737957751543,4.3161,231.82,231.78,0.03260643]
[1737957751742,8.59e-06,231.83,231.78,0.03260643]
[1737957752233,8.59e-06,231.83,231.81,4.3161]
[1737957757327,8.59e-06,231.83,231.82,4.316]
[1737957765845,4.0993,231.96,231.95,4.3136]
[1737957766343,4.0993,231.96,231.79,24.29777738]
[1737957766937,0.02854192,231.9,231.89,4.3147]
[1737957767243,17.80782794,232.19,231.84,19.45147738]
[1737957767443,3.9099,232.06,231.89,19.45147738]
[1737957767945,3.9099,232.06,232.01,4.3125]
[1737957768244,3.9099,232.06,231.89,19.45147738]
[1737957768937,0.03048907,232.0,231.95,0.02731805]
[1737957769143,0.03048907,232.0,231.99,4.3129]
[1737957769337,0.03048907,232.0,231.95,0.02731805]
[1737957770344,0.03048907,232.0,231.99,4.3129]
[1737957771543,0.03048907,232.0,231.98,4.313]
[1737957771848,0.03048907,232.0,231.95,0.02731805]
[1737957772243,0.03048907,232.0,231.95,4.34081805]
[1737957772439,0.03048907,232.0,231.95,0.02731805]
[1737957772846,4.3132,231.97,231.95,0.02731805]
[1737957773043,0.03048907,232.0,231.85,2.8382]
[1737957773340,19.45147738,232.02,231.85,2.8382]
[1737957773544,19.45147738,232.02,231.9,4.3145]
[1737957773940,19.45147738,232.02,231.85,2.8382]
[1737957774348,0.02857907,231.96,231.91,0.03008343]
[1737957774549,0.02857907,231.96,231.93,4.3139]
[1737957774947,0.02857907,231.96,231.91,0.03008343]
[1737957775145,4.3136,231.95,231.91,0.03008343]
[1737957776452,0.02857907,231.96,231.91,0.03008343]
[1737957776653,4.34197907,231.96,231.91,0.03008343]
[1737957776850,0.02857907,231.96,231.91,0.03008343]
[1737957777049,7.907e-05,231.96,231.91,0.03008343]
[1737957777650,7.907e-05,231.96,231.95,4.3136]
[1737957780951,7.907e-05,231.96,231.91,0.03008343]
[1737957781658,7.907e-05,231.96,231.92,4.3141]
[1737957781857,7.907e-05,231.96,231.91,0.03008343]
[1737957782553,7.907e-05,231.96,231.75,37.86400863]
[1737957782857,19.45147738,231.94,231.76,2.8641]
[1737957783056,2.8438,231.93,231.75,10.62290069]
[1737957783258,7.1579,231.93,231.8,4.3163]
[1737957783456,2.8438,231.93,231.74,53.96526254]
[1737957783855,19.48154013,231.86,231.81,0.03159905]
[1737957784058,2.6696,231.85,231.67,13.34010069]
[1737957784261,2.6696,231.85,231.67,10.62290069]
[1737957784462,2.6696,231.85,231.67,19.45147738]
[1737957785160,2.6696,231.85,231.8,4.3163]
[1737957785354,2.6696,231.85,231.74,0.03116835]
[1737957785550,2.69933982,231.85,231.67,19.45147738]
[1737957785754,2.6696,231.85,231.77,0.03212512]
[1737957785950,0.03088973,231.78,231.77,0.03212512]
[1737957786351,2.6696,231.85,231.77,0.03212512]
[1737957786561,0.02797986,231.8,231.77,0.03212512]
[1737957787060,0.02797986,231.8,231.78,4.3166]
[1737957787955,7.986e-05,231.8,231.78,4.3166]
[1737957792363,3.9465,231.91,231.77,19.4836025]
[1737957792561,5.6836,232.02,231.82,19.45147738]
[1737957792863,9.8337,232.02,231.87,19.45147738]
[1737957793157,2.8471,232.02,232.0,4.3126]
[1737957793363,21.93562271,232.05,231.87,19.45147738]
[1737957793553,4.0325,232.05,231.87,19.45147738]
[1737957793760,0.02789118,232.03,232.02,4.3122]
[1737957794063,4.06319468,232.05,232.02,4.3122]
[1737957794264,4.06319468,232.05,232.03,4.312]
[1737957794666,4.06319468,232.05,232.0,0.02764166]
[1737957795355,4.3125,232.01,231.82,19.45147738]
[1737957795557,23.48397738,232.05,231.82,19.45147738]
[1737957795760,4.0325,232.05,231.87,19.45147738]
[1737957796366,4.0325,232.05,231.92,4.3141]
[1737957796561,0.03015673,231.98,231.94,0.03064918]
[1737957798668,0.03015673,231.98,231.79,19.45147738]
[1737957798960,23.48397738,232.05,231.79,19.45147738]
[1737957799162,4.3132,231.98,231.88,4.3149]
[1737957799465,23.48397738,232.05,231.79,19.45147738]
[1737957799967,0.02837852,231.94,231.9,0.03001642]
[1737957800170,4.3134,231.97,231.79,19.45147738]
[1737957800367,0.02745111,231.94,231.9,0.02977437]
[1737957800763,0.02745111,231.94,231.9,4.34427437]
[1737957801665,0.02745111,231.94,231.9,0.02977437]
[1737957801862,0.02745111,231.94,231.91,4.3143]
[1737957802262,0.02745111,231.94,231.9,0.02977437]
[1737957802468,0.02745111,231.94,231.93,4.314]
[1737957802968,0.02745111,231.94,231.9,4.34417437]